bitfinex/quotes_ETHUSD_20230905
["timestamp","ask_amount","ask_price","bid_price","bid_amount"]
[1693908468408,9.19220426,1632.6,1632.4,1.66064286]
[1693908468607,15.31739426,1632.6,1632.5,0.63581402]
[1693908468808,3.06701426,1632.6,1632.5,1.70029177]
[1693908469111,9.19220426,1632.6,1632.5,1.70029177]
[1693908470621,3.06701426,1632.6,1632.5,1.70029177]
[1693908470836,9.19220426,1632.6,1632.5,1.70029177]
[1693908471623,11.65276775,1632.6,1632.5,1.70029177]
[1693908473135,11.65276775,1632.6,1632.5,0.63581402]
[1693908473340,11.65276775,1632.6,1632.5,1.70028568]
[1693908474443,8.55352194,1632.6,1632.5,1.70028568]
[1693908482778,8.55352194,1632.6,1632.5,1.79645079]
[1693908485276,14.67871194,1632.6,1632.5,1.79645079]
[1693908485481,7.4180885,1632.6,1632.5,1.79645079]
[1693908485980,13.049046,1632.7,1632.5,1.79645079]
[1693908486181,14.18066026,1632.7,1632.6,1.06447166]
[1693908486339,2.451106,1632.7,1632.6,1.06447166]
[1693908486545,5.14290088,1633.0,1632.6,14.79713731]
[1693908486546,2.14290088,1633.0,1632.6,14.79713731]
[1693908486860,2.14290088,1633.0,1632.7,1.16053323]
[1693908487044,6.12344,1633.1,1632.8,6.12444]
[1693908487380,9.19045426,1633.1,1632.9,1.327]
[1693908487988,9.19045426,1633.1,1632.8,13.57588]
[1693908488167,9.19045426,1633.1,1632.8,15.55553351]
[1693908492399,9.19045426,1633.1,1632.8,15.55553351]
[1693908493514,9.19045426,1633.1,1632.8,9.43109351]
[1693908493707,15.31393426,1633.1,1632.8,6.12444]
[1693908494319,15.31393426,1633.1,1632.9,1.06430258]
[1693908494516,17.33623426,1633.1,1632.9,1.06430258]
[1693908494721,23.45971426,1633.1,1632.8,0.09616511]
[1693908495013,27.1766102,1633.1,1632.8,0.09616511]
[1693908495314,27.1766102,1633.1,1632.8,1.16046572]
[1693908497389,3.06701426,1633.0,1632.9,0.59341756]
[1693908497591,15.31439426,1633.0,1632.9,1.65771817]
[1693908498613,15.31439426,1633.0,1632.9,0.59341756]
[1693908498781,11.90840728,1633.0,1632.9,0.59341756]
[1693908498982,9.19070426,1633.0,1632.9,0.59341756]
[1693908499186,14.26927,1633.1,1632.8,6.12431]
[1693908499397,17.33628426,1633.1,1632.8,6.12431]
[1693908512534,17.33628426,1633.1,1632.9,0.60116284]
[1693908520948,13.70919513,1633.2,1633.0,1.327]
[1693908520949,2.14263851,1633.2,1633.0,1.327]
[1693908521149,2.14263851,1633.2,1633.1,7.45032]
[1693908521348,2.14263851,1633.2,1633.1,14.931016]
[1693908521517,2.14263851,1633.2,1633.1,8.807696]
[1693908521716,67.166765,1633.4,1633.1,8.807696]
[1693908522649,19.92929974,1633.4,1633.2,0.72039271]
[1693908522950,19.92929974,1633.4,1633.1,8.807696]
[1693908523314,19.92929974,1633.4,1633.3,0.72039272]
[1693908523729,19.92929974,1633.4,1633.1,6.12332]
[1693908523953,19.92929974,1633.4,1633.1,7.480696]
[1693908525850,19.436765,1633.4,1633.1,7.480696]
[1693908527569,19.436765,1633.4,1633.2,0.72036856]
[1693908527753,19.436765,1633.4,1633.1,7.480696]
[1693908533479,19.436765,1633.4,1633.1,6.12332]
[1693908534055,25.559305,1633.4,1633.1,6.12332]
[1693908534883,25.559305,1633.4,1633.0,7.45044]
[1693908535090,25.559305,1633.4,1633.0,13.57399]
[1693908538970,25.559305,1633.4,1633.0,7.45044]
[1693908539486,25.559305,1633.4,1632.9,14.94547]
[1693908539487,31.86608296,1633.4,1632.9,14.94547]
[1693908539785,31.86608296,1633.4,1632.9,13.57487]
[1693908540492,28.62631926,1633.4,1633.0,1.327]
[1693908540672,19.436765,1633.4,1633.1,6.12329]
[1693908542506,19.436765,1633.4,1633.2,0.72032025]
[1693908543006,19.436765,1633.4,1633.1,6.12329]
[1693908544006,25.559305,1633.4,1633.1,6.12329]
[1693908547695,32.05828032,1633.4,1633.0,6.1235]
[1693908547902,2.0351,1633.3,1633.0,6.1235]
[1693908548102,6.12294,1633.2,1633.0,6.1235]
[1693908552723,6.12294,1633.2,1633.0,7.4505]
[1693908552925,2.6448,1633.4,1633.0,18.37088]
[1693908553097,2.63840558,1633.5,1633.0,18.37088]
[1693908553098,2.14224507,1633.5,1633.3,1.327]
[1693908553418,6.12183,1633.5,1633.3,7.44926]
[1693908553619,4.7204,1633.6,1633.3,13.57183]
[1693908553916,10.84207,1633.6,1633.3,13.57183]
[1693908554117,16.96374,1633.6,1633.3,13.57183]
[1693908554322,10.84207,1633.6,1633.3,13.57183]
[1693908555087,4.7204,1633.6,1633.3,15.10254491]
[1693908555290,10.84205,1633.6,1633.3,15.10254491]
[1693908557540,16.9637,1633.6,1633.4,0.71895992]
[1693908573424,26.15236426,1633.6,1633.4,0.71895992]
[1693908573657,26.15236426,1633.6,1633.2,13.57248]
[1693908573857,26.15236426,1633.6,1633.2,15.674634]
[1693908574157,26.15236426,1633.6,1633.3,0.71888746]
[1693908578634,26.15236426,1633.6,1633.3,6.84142746]
[1693908584640,26.15236426,1633.6,1633.3,0.71888746]
[1693908591323,26.15236426,1633.6,1633.3,6.84143746]
[1693908592405,29.27688129,1633.6,1633.3,6.84143746]
[1693908595118,3.06701426,1633.5,1633.3,0.71888746]
[1693908595329,6.12219,1633.4,1633.3,0.71888746]
[1693908598802,6.12219,1633.4,1633.3,6.84145746]
[1693908599686,17.35556426,1633.5,1633.3,6.84145746]
[1693908601116,11.23351426,1633.5,1633.3,6.84145746]
[1693908615158,12.25869279,1633.5,1633.3,6.84145746]
[1693908624545,12.25869279,1633.5,1633.3,12.96402746]
[1693908627224,11.23351426,1633.5,1633.3,12.96402746]
[1693908627761,5.11151426,1633.5,1633.3,12.96402746]
[1693908628962,11.23333426,1633.5,1633.3,12.96402746]
[1693908629454,2.0445,1633.5,1633.3,12.96402746]
[1693908629673,2.6665,1633.6,1633.3,19.08659746]
[1693908629959,2.6665,1633.6,1633.3,23.34585103]
[1693908630138,2.6665,1633.6,1633.3,21.74983572]
[1693908632072,2.6665,1633.6,1633.4,0.00326772]
[1693908632233,2.6665,1633.6,1633.4,6.12522772]
[1693908632674,2.6665,1633.6,1633.5,0.87116035]
[1693908632969,2.6665,1633.6,1633.5,0.8744194]
[1693908633373,8.78794,1633.6,1633.5,0.8744194]
[1693908641247,6.12144,1633.6,1633.5,0.8744194]
[1693908642161,8.26317286,1633.7,1633.5,0.8744194]
[1693908642162,14.38453286,1633.7,1633.5,0.8744194]
[1693908642379,14.38453286,1633.7,1633.5,6.9962394]
[1693908642656,12.24255,1633.7,1633.5,6.9962394]
[1693908647316,6.12119,1633.7,1633.5,6.9962394]
[1693908648477,6.12119,1633.7,1633.5,9.07984103]
[1693908656905,8.14929,1633.7,1633.5,9.07984103]
[1693908657657,8.14929,1633.7,1633.5,6.9962394]
[1693908664502,8.14929,1633.7,1633.5,0.8744194]
[1693908664702,14.27061,1633.7,1633.5,0.8744194]
[1693908703137,3.06701426,1633.6,1633.5,0.8744194]
[1693908703340,15.30989426,1633.6,1633.5,0.8744194]
[1693908703702,11.53437269,1633.6,1633.5,0.8744194]
[1693908703926,6.12144,1633.6,1633.5,0.8744194]
[1693908705461,14.27059,1633.7,1633.5,0.8744194]
[1693908705603,17.33760426,1633.7,1633.5,0.8744194]
[1693908708371,8.14929,1633.7,1633.5,0.8744194]
[1693908708658,8.14929,1633.7,1633.5,6.9962394]
[1693908711042,14.27059,1633.7,1633.5,0.8744194]
[1693908726085,12.24249,1633.7,1633.5,0.8744194]
[1693908733113,14.17309,1633.7,1633.5,0.8744194]
[1693908742237,14.17309,1633.7,1633.5,2.34584159]
[1693908743227,8.05179,1633.7,1633.5,2.34584159]
[1693908744129,6.12119,1633.7,1633.5,2.34584159]
[1693908744426,6.12119,1633.7,1633.5,8.46763159]
[1693908746990,11.2848443,1633.8,1633.5,8.46763159]
[1693908747189,6.12078,1633.8,1633.6,1.91055614]
[1693908747404,10.98312128,1633.9,1633.7,2.3907594]
[1693908747606,10.98312128,1633.9,1633.7,7.44785]
[1693908747805,8.8414,1633.9,1633.8,0.86893305]
[1693908748023,8.8414,1633.9,1633.8,0.87216752]
[1693908749414,6.1204,1633.9,1633.8,1.92178508]
[1693908750823,16.74643,1634.0,1633.8,1.92178508]
[1693908751229,2.4764,1634.0,1633.9,1.327]
[1693908751430,2.14145864,1634.1,1633.9,7.44732]
[1693908751587,2.14145864,1634.1,1634.0,0.744732]
[1693908751803,16.74638,1634.2,1634.0,0.744732]
[1693908752006,14.70295,1634.2,1634.0,0.74794915]
[1693908752441,14.70295,1634.2,1634.1,0.86768187]
[1693908755646,8.5835,1634.2,1634.1,0.86768187]
[1693908756060,8.5835,1634.2,1634.1,0.87089036]
[1693908759119,2.4641,1634.2,1634.1,0.87089036]
[1693908759829,8.5833,1634.2,1634.1,0.87089036]
[1693908774217,10.28919662,1634.3,1634.1,8.3015104]
[1693908774218,4.17019662,1634.3,1634.1,8.3015104]
[1693908774380,10.28905662,1634.3,1634.1,9.6285104]
[1693908774922,10.28905662,1634.3,1634.1,8.3015104]
[1693908775112,8.14786,1634.3,1634.1,8.3015104]
[1693908776326,8.14786,1634.3,1634.1,6.99046036]
[1693908776850,8.14786,1634.3,1634.1,6.12277849]
[1693908777116,8.14786,1634.3,1634.1,6.11957]
[1693908777317,8.14786,1634.3,1634.2,0.86707568]
[1693908777614,8.14786,1634.3,1634.1,6.11957]
[1693908778006,8.14786,1634.3,1634.2,0.00319983]
[1693908779116,8.14786,1634.3,1634.1,6.11957]
[1693908780014,8.14786,1634.3,1634.2,0.00319983]
[1693908781095,0.101,1634.3,1634.1,6.11957]
[1693908781299,0.101,1634.4,1634.2,9.12158539]
[1693908781488,0.101,1634.4,1634.2,14.177357]
[1693908782087,0.101,1634.4,1634.3,0.00319117]
[1693908782489,0.101,1634.4,1634.3,6.98895417]
[1693908784125,0.101,1634.4,1634.3,8.0523472]
[1693908784292,0.101,1634.4,1634.3,9.67301413]
[1693908786694,0.101,1634.4,1634.3,11.26810358]
[1693908786904,0.101,1634.4,1634.3,9.67301413]
[1693908787935,0.101,1634.4,1634.3,11.26810526]
[1693908790899,0.101,1634.4,1634.3,17.38692526]
[1693908791636,0.101,1634.4,1634.3,17.48309037]
[1693908799845,0.101,1634.4,1634.3,17.38692526]
[1693908802452,0.101,1634.4,1634.3,3.52864177]
[1693908802742,0.101,1634.4,1634.3,1.9335272]
[1693908802946,0.101,1634.4,1634.3,8.0523472]
[1693908803908,0.101,1634.4,1634.3,6.98895417]
[1693908805638,0.101,1634.4,1634.3,13.10777417]
[1693908805818,0.101,1634.4,1634.3,15.34044759]
[1693908808444,0.101,1634.4,1634.3,13.10777417]
[1693908823364,0.101,1634.4,1634.3,0.87013417]
[1693908824102,0.101,1634.4,1634.3,6.98895417]
[1693908825702,0.101,1634.4,1634.3,8.05234473]
[1693908828233,0.101,1634.4,1634.3,14.17116473]
[1693908829395,0.101,1634.4,1634.3,16.51979071]
[1693908830729,0.101,1634.4,1634.3,18.11483267]
[1693908830937,0.101,1634.4,1634.3,16.51979071]
[1693908838146,0.101,1634.4,1634.3,25.56056935]
[1693908838445,0.101,1634.4,1634.3,25.65673446]
[1693908838945,0.101,1634.4,1634.3,22.99838526]
[1693908839146,0.101,1634.4,1634.3,25.65658001]
[1693908842222,0.101,1634.4,1634.3,25.5604149]
[1693908842424,0.101,1634.4,1634.3,25.65658001]
[1693908843545,0.101,1634.4,1634.3,25.5604149]
[1693908843959,0.101,1634.4,1634.3,25.65658001]
[1693908844262,0.101,1634.4,1634.3,25.5604149]
[1693908848362,0.101,1634.4,1634.3,26.06107923]
[1693908856882,0.101,1634.4,1634.3,29.2242586]
[1693908857030,0.101,1634.5,1634.3,32.52463055]
[1693908857361,0.101,1634.5,1634.4,6.59198822]
[1693908857660,0.101,1634.5,1634.4,24.94693392]
[1693908857859,0.101,1634.5,1634.4,27.94783277]
[1693908858063,0.101,1634.5,1634.4,27.95159392]
[1693908858248,0.101,1634.5,1634.4,24.87211742]
[1693908862268,0.101,1634.5,1634.4,27.93913168]
[1693908862563,0.101,1634.5,1634.4,30.38306186]
[1693908864891,0.101,1634.5,1634.4,27.72527141]
[1693908865190,0.101,1634.6,1634.5,1.327]
[1693908865392,0.101,1634.6,1634.5,26.64866771]
[1693908866064,0.101,1634.6,1634.5,26.65241863]
[1693908870892,0.101,1634.6,1634.5,32.73120744]
[1693908872507,0.101,1634.6,1634.5,30.57244379]
[1693908872910,0.101,1634.6,1634.5,33.57244379]
[1693908873107,0.101,1634.6,1634.5,30.57244379]
[1693908873273,0.101,1634.6,1634.5,32.93827859]
[1693908876502,0.101,1634.6,1634.5,34.20800724]
[1693908877509,0.101,1634.6,1634.5,33.25533915]
[1693908877714,0.101,1634.6,1634.5,33.73931654]
[1693908880982,0.101,1634.6,1634.5,36.73931654]
[1693908885199,1.02840512,1634.7,1634.5,36.73931654]
[1693908885399,1.02840512,1634.7,1634.6,5.95473507]
[1693908885610,1.02840512,1634.7,1634.6,24.30783507]
[1693908885814,2.6338,1634.8,1634.6,26.43395579]
[1693908885992,2.6338,1634.8,1634.7,3.2916125]
[1693908886192,2.6338,1634.8,1634.7,20.04900258]
[1693908886493,2.6338,1634.8,1634.7,21.6436025]
[1693908887643,2.6338,1634.8,1634.7,22.48452978]
[1693908890135,2.6338,1634.8,1634.7,22.48826024]
[1693908890336,2.6338,1634.8,1634.7,25.58826024]
[1693908890925,2.6338,1634.8,1634.7,24.95431427]
[1693908891126,2.6338,1634.8,1634.7,25.58826024]
[1693908891436,2.6338,1634.8,1634.7,24.95431427]
[1693908891740,2.6338,1634.8,1634.7,26.28131427]
[1693908892036,2.6338,1634.8,1634.7,28.62994025]
[1693908892343,2.6338,1634.8,1634.7,29.26388622]
[1693908892500,2.6338,1634.8,1634.7,28.62994025]
[1693908892701,2.6338,1634.8,1634.7,29.26388622]
[1693908893638,2.6338,1634.8,1634.7,28.62994025]
[1693908895239,2.6338,1634.8,1634.7,29.26388622]
[1693908900845,2.6338,1634.8,1634.7,29.76558486]
[1693908901211,2.6338,1634.8,1634.7,30.71647647]
[1693908902141,2.6338,1634.8,1634.7,30.0825305]
[1693908903142,2.6338,1634.8,1634.7,30.71822415]
[1693908905971,0.101,1634.8,1634.7,30.71822415]
[1693908906167,0.101,1634.8,1634.7,33.78523841]
[1693908906505,0.101,1634.8,1634.7,35.27566548]
[1693908907353,0.101,1634.8,1634.7,35.91163321]
[1693908908784,0.101,1634.8,1634.7,35.27566548]
[1693908911374,0.101,1634.8,1634.7,36.54539413]
[1693908912800,0.101,1634.8,1634.7,33.8877276]
[1693908912959,0.101,1634.8,1634.7,36.54501755]
[1693908913787,0.101,1634.8,1634.7,35.2752889]
[1693908914404,0.101,1634.8,1634.7,37.44650487]
[1693908914913,2.7533,1634.9,1634.7,37.44650487]
[1693908915114,2.7533,1634.9,1634.8,9.02137275]
[1693908915401,0.101,1634.9,1634.8,28.01123759]
[1693908915599,0.101,1634.9,1634.8,32.24838518]
[1693908915960,0.101,1634.9,1634.8,32.25210542]
[1693908916605,0.101,1634.9,1634.8,30.66219897]
[1693908919517,0.101,1634.9,1634.8,31.61472153]
[1693908921522,0.101,1634.9,1634.8,34.61472153]
[1693908921728,31.519202,1635.0,1634.8,37.14219897]
[1693908921879,31.519202,1635.0,1634.9,10.52618623]
[1693908922078,31.519202,1635.0,1634.9,29.81681977]
[1693908922274,31.519202,1635.0,1634.9,32.782901]
[1693908922509,31.519202,1635.0,1634.9,29.70449053]
[1693908922997,31.519202,1635.0,1634.9,29.70820054]
[1693908923674,31.519202,1635.0,1634.9,32.78603882]
[1693908923881,31.519202,1635.0,1634.9,32.15117899]
[1693908927030,31.519202,1635.0,1634.9,33.42209086]
[1693908927460,31.519202,1635.0,1634.9,32.15117899]
[1693908929767,31.519202,1635.0,1634.9,33.42209086]
[1693908930257,31.519202,1635.0,1634.9,32.15117899]
[1693908930572,31.519202,1635.0,1634.9,33.42209086]
[1693908932551,31.519202,1635.0,1634.9,33.67393926]
[1693908933619,31.519202,1635.0,1634.9,32.72164951]
[1693908933818,31.519202,1635.0,1634.9,33.6728657]
[1693908934637,31.519202,1635.0,1634.9,29.65463525]
[1693908934848,31.519202,1635.0,1634.9,30.60584074]
[1693908935163,2.24075668,1635.4,1635.3,3.0]
[1693908935366,2.24075668,1635.4,1635.2,1.26741611]
[1693908935367,2.5636,1635.3,1635.2,1.26741611]
[1693908935565,2.5636,1635.3,1635.2,23.22133442]
[1693908936231,2.5636,1635.3,1635.2,23.22585929]
[1693908937479,2.5636,1635.3,1635.2,29.96849953]
[1693908937769,2.5636,1635.3,1635.2,31.14338799]
[1693908937938,2.5636,1635.3,1635.2,31.46024202]
[1693908939624,2.5636,1635.3,1635.2,37.57569202]
[1693908941594,1.43026248,1635.3,1635.2,37.57569202]
[1693908944520,1.43026248,1635.3,1635.2,40.67569202]
[1693908945514,1.43026248,1635.3,1635.2,41.16894865]
[1693908946719,1.43026248,1635.3,1635.2,41.64894865]
[1693908947479,1.43026248,1635.3,1635.2,42.73970997]
[1693908947683,1.9808,1635.4,1635.2,42.73970997]
[1693908947883,1.9808,1635.4,1635.3,31.87068214]
[1693908948622,1.9808,1635.4,1635.3,30.6051581]
[1693908948794,1.9808,1635.4,1635.3,31.8706052]
[1693908949001,1.9808,1635.4,1635.3,31.87512134]
[1693908949525,1.9808,1635.4,1635.3,30.60967424]
[1693908952089,0.28083601,1635.4,1635.3,30.60967424]
[1693908954987,2.18365165,1635.8,1635.3,30.60967424]
[1693908955235,2.18365165,1635.8,1635.5,1.58239421]
[1693908955403,2.18365165,1635.8,1635.5,7.80976195]
[1693908955404,8.29687165,1635.8,1635.5,7.80976195]
[1693908955730,8.29687165,1635.8,1635.6,1.06253427]
[1693908956097,8.29687165,1635.8,1635.6,1.06702421]
[1693908956535,0.82968717,1635.7,1635.6,0.00448994]
[1693908956844,0.82968717,1635.7,1635.6,1.06699459]
[1693908960862,0.82968717,1635.7,1635.6,7.81391227]
[1693908961274,0.82968717,1635.7,1635.6,7.18095459]
[1693908962673,0.82968717,1635.7,1635.6,8.23119696]
[1693908972493,0.82968717,1635.7,1635.6,7.16869231]
[1693908972689,0.82968717,1635.7,1635.6,8.23120375]
[1693908973607,0.82968717,1635.7,1635.6,7.16869231]
[1693908975877,0.82968717,1635.7,1635.6,8.23120307]
[1693908980914,10.01029143,1635.7,1635.6,1.05473231]
[1693908981140,23.56447143,1635.7,1635.6,1.05473231]
[1693908981415,17.45088143,1635.7,1635.6,1.05473231]
[1693908982006,19.89763043,1635.7,1635.6,1.05473231]
[1693908983093,18.57063043,1635.7,1635.6,1.05473231]
[1693908991402,12.45704043,1635.7,1635.6,1.05473231]
[1693908991621,12.95472093,1635.7,1635.6,1.05473231]
[1693908991797,19.06831093,1635.7,1635.6,1.05473231]
[1693908995447,25.18190093,1635.7,1635.6,1.05473231]
[1693908995945,19.06831093,1635.7,1635.6,1.05473231]
[1693908997845,20.39531093,1635.7,1635.6,1.05473231]
[1693908998209,26.50890093,1635.7,1635.6,1.05473231]
[1693908998811,20.39531093,1635.7,1635.6,1.05473231]
[1693909008147,12.95472093,1635.7,1635.6,1.05473231]
[1693909010073,19.06831093,1635.7,1635.6,1.05473231]
[1693909019194,25.18190093,1635.7,1635.6,1.05473231]
[1693909023728,25.18190093,1635.7,1635.6,1.05473231]
[1693909050755,25.18190093,1635.7,1635.6,1.09395867]
[1693909050957,3.0,1635.4,1635.2,3.1]
[1693909051257,30.52733426,1635.3,1635.2,3.1]
[1693909051456,32.66722176,1635.3,1635.2,3.1]
[1693909051959,30.52733426,1635.3,1635.2,3.1]
[1693909052118,30.52733426,1635.3,1635.2,0.9598508]
[1693909052322,1.1802984,1635.1,1634.7,8.26614768]
[1693909052518,12.23256,1635.0,1634.8,1.06299729]
[1693909052759,12.23256,1635.0,1634.7,7.71140754]
[1693909052947,12.23256,1635.0,1634.9,1.25167437]
[1693909053157,14.680065,1635.0,1634.9,0.00342831]
[1693909053337,20.796345,1635.0,1634.9,0.00342831]
[1693909053531,26.97931803,1635.0,1634.9,0.00342831]
[1693909054154,26.97931803,1635.0,1634.6,6.11751]
[1693909055155,26.97931803,1635.0,1634.7,0.00344579]
[1693909056052,26.97931803,1635.0,1634.6,6.11751]
[1693909056946,26.97931803,1635.0,1634.7,0.00344282]
[1693909057142,2.6979318,1634.9,1634.7,0.00344282]
[1693909057341,6.11695,1634.8,1634.7,0.00344282]
[1693909058057,6.11695,1634.8,1634.5,18.51239175]
[1693909058249,6.11695,1634.8,1634.6,1.063058]
[1693909059057,6.11695,1634.8,1634.7,0.00344282]
[1693909059648,12.2339,1634.8,1634.7,0.00344282]
[1693909060180,12.2339,1634.8,1634.6,1.063058]
[1693909060548,6.11695,1634.8,1634.6,1.063058]
[1693909060739,6.11695,1634.8,1634.6,7.180748]
[1693909060939,13.457282,1634.8,1634.5,15.41237175]
[1693909061159,13.457282,1634.8,1634.7,0.00331242]
[1693909061469,22.64124626,1634.8,1634.7,0.00331242]
[1693909062056,22.64124626,1634.8,1634.5,1.69604057]
[1693909062456,24.78178812,1634.8,1634.5,1.69604057]
[1693909063057,24.78178812,1634.8,1634.6,0.00332116]
[1693909063481,2.47817881,1634.7,1634.6,0.00332116]
[1693909063783,12.23466,1634.7,1634.6,0.00332116]
[1693909064650,21.41900426,1634.7,1634.6,0.00332116]
[1693909066180,21.41900426,1634.7,1634.5,1.06316761]
[1693909066353,3.06701426,1634.6,1634.4,0.63295768]
[1693909066553,12.23614,1634.5,1634.4,1.69613728]
[1693909067078,12.23614,1634.5,1634.4,1.69947593]
[1693909067669,12.23614,1634.5,1634.4,2.87472144]
[1693909072710,12.23614,1634.5,1634.4,3.82415797]
[1693909074012,12.23614,1634.5,1634.4,2.87472144]
[1693909074714,12.23614,1634.5,1634.4,3.82415797]
[1693909075416,6.11807,1634.5,1634.4,2.87472144]
[1693909075780,12.23614,1634.5,1634.4,3.82415797]
[1693909075977,12.23614,1634.5,1634.4,2.87472144]
[1693909076216,6.11807,1634.5,1634.4,3.82415797]
[1693909078716,6.11807,1634.5,1634.4,3.19120029]
[1693909079929,6.11807,1634.5,1634.4,3.82419871]
[1693909080304,6.11773,1634.6,1634.4,3.82419871]
[1693909080505,6.11773,1634.6,1634.5,1.0631796]
[1693909080713,6.11773,1634.6,1634.5,1.69617802]
[1693909081133,6.11773,1634.6,1634.5,1.69950792]
[1693909081902,8.74476962,1634.8,1634.5,1.69950792]
[1693909082102,2.14054186,1634.8,1634.6,0.63299842]
[1693909082307,8.25755186,1634.8,1634.6,11.61280423]
[1693909082527,8.25755186,1634.8,1634.7,1.0631796]
[1693909083846,13.2406018,1634.8,1634.7,1.0631796]
[1693909085221,13.2406018,1634.8,1634.7,1.06649202]
[1693909087443,19.3576118,1634.8,1634.7,1.06649202]
[1693909088316,22.10196698,1634.8,1634.7,1.06649202]
[1693909089536,25.16898124,1634.8,1634.7,1.06649202]
[1693909091862,25.16898124,1634.8,1634.7,4.06649202]
[1693909092834,25.16898124,1634.8,1634.7,4.69949044]
[1693909095781,25.16898124,1634.8,1634.7,5.64892697]
[1693909096665,25.16898124,1634.8,1634.7,4.69949044]
[1693909096826,25.16898124,1634.8,1634.7,5.01592855]
[1693909096827,16.30761606,1634.8,1634.7,5.01592855]
[1693909097023,16.30761606,1634.8,1634.7,5.01261613]
[1693909097432,16.30761606,1634.8,1634.7,6.62611736]
[1693909098179,16.30761606,1634.8,1634.7,6.62942978]
[1693909098327,7.1235918,1634.8,1634.7,7.89534515]
[1693909098534,7.1235918,1634.8,1634.7,6.94590862]
[1693909098778,7.1235918,1634.8,1634.7,7.8999746]
[1693909100460,7.1235918,1634.8,1634.7,6.63405923]
[1693909102781,7.1235918,1634.8,1634.7,7.27030583]
[1693909102989,7.1235918,1634.8,1634.7,6.63405923]
[1693909103772,7.1235918,1634.8,1634.7,7.27035584]
[1693909104778,7.1235918,1634.8,1634.7,6.31628986]
[1693909106760,7.1235918,1634.8,1634.7,5.67999325]
[1693909107252,13.2405418,1634.8,1634.7,5.67999325]
[1693909107755,15.41247998,1634.8,1634.7,5.67999325]
[1693909108765,24.59644424,1634.8,1634.7,4.61681365]
[1693909109163,18.47943424,1634.8,1634.7,4.61681365]
[1693909117501,18.97322571,1634.8,1634.7,4.61681365]
[1693909126217,25.09017571,1634.8,1634.7,4.61681365]
[1693909126594,18.97322571,1634.8,1634.7,4.61681365]
[1693909126800,25.09017571,1634.8,1634.7,4.61681365]
[1693909127605,18.97322571,1634.8,1634.7,4.61681365]
[1693909129322,25.09017571,1634.8,1634.7,4.61681365]
[1693909138340,22.91823753,1634.8,1634.7,4.61681365]
[1693909144047,16.80128753,1634.8,1634.7,4.61681365]
[1693909144247,22.91823753,1634.8,1634.7,4.61681365]
[1693909144453,16.80128753,1634.8,1634.7,4.61681365]
[1693909158974,16.80128753,1634.8,1634.7,4.56681365]
[1693909159347,20.13506228,1634.8,1634.7,4.56681365]
[1693909163647,20.08506228,1634.8,1634.7,4.56681365]
[1693909170983,20.08506228,1634.8,1634.7,10.68414365]
[1693909170984,0.9565818,1634.8,1634.7,10.68414365]
[1693909171188,0.9565818,1634.8,1634.7,16.80147365]
[1693909171389,0.9565818,1634.8,1634.7,10.68414365]
[1693909174181,0.9565818,1634.8,1634.7,10.44373149]
[1693909176183,0.9565818,1634.8,1634.7,10.44041907]
[1693909176381,0.9565818,1634.8,1634.7,25.55341172]
[1693909176580,0.9565818,1634.8,1634.7,29.90915941]
[1693909177092,30.45,1635.1,1634.7,31.17874917]
[1693909177402,2.1401492,1635.1,1634.9,1.327]
[1693909177603,2.1401492,1635.1,1635.0,6.1162]
[1693909177805,2.1401492,1635.1,1635.0,7.472145]
[1693909177977,2.1401492,1635.1,1635.0,9.0955394]
[1693909178178,2.1401492,1635.1,1635.0,9.09918281]
[1693909179881,2.1401492,1635.1,1635.0,15.21538281]
[1693909180199,2.1401492,1635.1,1635.0,16.54238281]
[1693909183877,2.1401492,1635.1,1635.0,15.21538281]
[1693909186482,2.1401492,1635.1,1635.0,9.09918281]
[1693909186778,2.1401492,1635.1,1635.0,7.74323781]
[1693909190023,2.1401492,1635.1,1635.0,7.74725966]
[1693909190683,2.1401492,1635.1,1635.0,1.63105966]
[1693909190891,8.2559792,1635.1,1635.0,1.63105966]
[1693909193417,2.1401492,1635.1,1635.0,4.33105966]
[1693909197928,8.2559792,1635.1,1635.0,4.33105966]
[1693909198234,15.80896512,1635.1,1635.0,4.33105966]
[1693909200729,18.87597938,1635.1,1635.0,4.33105966]
[1693909205223,12.76014938,1635.1,1635.0,4.33105966]
[1693909205733,2.1401492,1635.1,1635.0,10.44725966]
[1693909207445,2.1401492,1635.1,1635.0,4.33105966]
[1693909210638,8.2559792,1635.1,1635.0,4.33105966]
[1693909220453,2.1401492,1635.1,1635.0,4.33105966]
[1693909228130,2.1401492,1635.1,1635.0,10.44725966]
[1693909232030,2.1401492,1635.1,1635.0,10.44354357]
[1693909237784,3.20244213,1635.1,1635.0,10.44354357]
[1693909237970,3.20244213,1635.1,1635.0,4.32734357]
[1693909241884,9.31827213,1635.1,1635.0,4.32734357]
[1693909242385,12.38528639,1635.1,1635.0,4.32734357]
[1693909242549,13.71228639,1635.1,1635.0,4.32734357]
[1693909242749,19.82811639,1635.1,1635.0,4.32734357]
[1693909243980,25.94394639,1635.1,1635.0,4.32734357]
[1693909245350,23.80379719,1635.1,1635.0,4.32734357]
[1693909245555,23.80379719,1635.1,1635.0,2.70394917]
[1693909245748,23.80379719,1635.1,1635.0,0.56353821]
[1693909245949,0.35303527,1634.9,1634.6,6.11756]
[1693909246158,9.18396426,1634.8,1634.6,6.11756]
[1693909246488,9.18396426,1634.8,1634.7,1.1633128]
[1693909246696,10.74933521,1634.8,1634.7,1.1633128]
[1693909246892,10.74933521,1634.8,1634.6,12.23513]
[1693909247264,4.63238521,1634.8,1634.7,1.1633128]
[1693909247585,4.63238521,1634.8,1634.6,12.23513]
[1693909249381,3.06701426,1634.8,1634.6,12.23513]
[1693909250070,3.06701426,1634.8,1634.7,0.00352772]
[1693909251102,3.06701426,1634.8,1634.6,12.23513]
[1693909252098,3.06701426,1634.8,1634.7,0.00352772]
[1693909253117,3.06701426,1634.8,1634.6,12.23513]
[1693909254086,3.06701426,1634.8,1634.7,0.00352772]
[1693909254277,4.74616021,1634.8,1634.7,0.00352772]
[1693909255108,4.74616021,1634.8,1634.6,12.23513]
[1693909255287,3.06701426,1634.8,1634.6,12.23513]
[1693909256197,9.18401426,1634.8,1634.7,0.00352772]
[1693909257111,9.18401426,1634.8,1634.6,12.23513]
[1693909258110,9.18401426,1634.8,1634.7,0.00352772]
[1693909259110,9.18401426,1634.8,1634.6,12.23513]
[1693909259897,9.18401426,1634.8,1634.6,6.11756]
[1693909260071,11.81073261,1634.8,1634.7,0.00352772]
[1693909260580,13.69803261,1634.8,1634.7,0.00352772]